Cogmind - Beta 16 @@@ ROGUE MODE // 2026.01.19 @ 22:55:21 Player: YoKa Result: Destroyed by as-33283 with Assembled Blade Performance ------------- Evolutions (0) 0 Regions Visited (2) 400 Robots Destroyed (7) 35 Value Destroyed (63) 63 Prototype IDs (0) 0 Alien Tech Used (0) 0 Bonus (0) 0 TOTAL SCORE: 498 Bonus ------- None Cogmind --------- Core Integrity 0/250 Matter 177/300 Energy 100/100 System Corruption 3% Temperature Cool (0) Movement Core (50) Location -10/Mines Parts ------- > --- POWER (1) -------- (None) > --- PROPULSION (2) --- (None) > --- UTILITY (2) ------ Signal Interpreter > --- WEAPON (2) ------- (None) > --- INVENTORY (5) ---- Ion Engine Structural Scanner Propulsion Shielding Medium Laser Datajack Peak State ------------ > --- POWER ------------ Ion Engine > --- PROPULSION ------- Aluminum Leg Aluminum Leg > --- UTILITY ---------- Small Storage Unit Tractor Beam > --- WEAPON ----------- Medium Laser Medium Laser > --- INVENTORY -------- Ion Engine Light Treads Light Treads Small Storage Unit [Rating: 7] Favorites ----------- Power Ion Engine Engine Ion Engine Propulsion Flight Unit Treads Light Treads Leg Aluminum Leg Flight Unit Flight Unit Utility Signal Interpreter Device Sensor Array Storage Small Storage Unit Processor Signal Interpreter Weapon Medium Laser Energy Gun Medium Laser Ballistic Gun Light Assault Rifle Launcher Grenade Launcher Special Melee Weapon Datajack Build | -11 -10 -10 ------- Run | Yrd Mat Min Slots Evolved . | . . . Power . | . . . Propulsion . | . . . Utility . | . . . Weapon . | . . . Parts Attached 20 | 10 8 2 Power 2 | 1 1 . Engine 2 | 1 1 . Core . | . . . Reactor . | . . . Propulsion 7 | 4 3 . Treads 2 | 2 . . Leg 2 | 2 . . Wheel . | . . . Hover . | . . . Flight 3 | . 3 . Utility 6 | 3 3 . Device 3 | 1 2 . Storage 2 | 2 . . Processor 1 | . 1 . Hackware . | . . . Protection . | . . . Artifact . | . . . Weapon 5 | 2 1 2 Energy Gun 2 | 2 . . Energy Cannon . | . . . Ballistic Gun 1 | . . 1 Ballistic Cannon . | . . . Launcher 1 | . . 1 Special Weapon . | . . . Impact Weapon . | . . . Slashing Weapon . | . . . Piercing Weapon . | . . . Special Melee Weapon 1 | . 1 . Unidentified Prototypes . | . . . Parts Lost 8 | . 2 6 Power 2 | . 1 1 Propulsion 2 | . . 2 Utility 2 | . 1 1 Weapon 2 | . . 2 Highest Loss Streak 6 | . 2 6 To Critical Strikes . | . . . Average Backups 3 | 2 4 4 Power . | . 1 1 Propulsion 1 | 1 2 . Utility . | . . 2 Weapon . | . . . Tool/Special . | . . . Unused Backups 3 | . . 3 Power 1 | . . 1 Propulsion . | . . . Utility 2 | . . 2 Weapon . | . . . Tool/Special . | . . . Average Slot Usage (%) 79 | . 76 95 Engine 12 | . 12 14 Treads 1 | . 1 . Leg 2 | . 2 . Flight 19 | . 17 25 Device 8 | . 7 14 Storage 3 | . 3 . Processor 12 | . 12 14 Energy Gun 10 | . 11 4 Ballistic Gun 1 | . . 7 Launcher 1 | . . 9 Special Melee Weapon 5 | . 6 4 Peak Build Rating 7 | 7 7 7 Average Rating 5 | 4 5 6 On Entrance 4 | . 7 7 Avg Prop Armor Cover (%) 8 | . 8 . Naked Turns . | . . . Heaviest Build 19 | 19 19 8 Greatest Support 40 | 40 20 8 Greatest Overweight (x) 2 | 1 2 1 Average Overweight (x) . | . . . Largest Inventory Capacity 8 | 8 8 5 Average Capacity 5 | 5 5 5 Most Carried 6 | 5 6 5 Average Carried 4 | 2 4 4 Final Capacity 8 | 8 5 5 Final Carried 5 | 4 3 5 Class Distribution -------------------- 88% | Mutant 11% | Scavenger-Mutant Dominant Class ---------------- Mutant | -10/Materials Scavenger-Mutant | -10/Mines Resources | -11 -10 -10 ----------- Run | Yrd Mat Min Matter Collected 351 | 300 42 9 Remotely 149 | 149 . . Salvage Created 156 | 85 32 39 Parts 11 | 5 3 3 Haulers Intercepted . | . . . Recyclers Shooed . | . . . Parts Field Recycled . | . . . Retrieved Matter . | . . . Parts Self-Destructed . | . . . Prevented . | . . . Parts Restored . | . . . Kills | -11 -10 -10 ------- Run | Yrd Mat Min Combat Hostiles Destroyed 8 | . 2 6 Guns 2 | . 2 . AOE 6 | . . 6 Classes Destroyed 4 | 2 1 1 Tunneler 1 | 1 . . Recycler 1 | 1 . . Swarmer 5 | . 2 3 Assembled 3 | . . 3 Best Kill Streak 3 | 1 2 3 Combat Bots Only 3 | . 2 3 Max Kills in Single Turn 3 | 1 1 3 Gunslinging . | . . . Exploded 3 | . . 3 Melee . | . . . Uniques/NPCs Destroyed . | . . . Combat | -11 -10 -10 -------- Run | Yrd Mat Min Hostile Shots Fired 56 | . 30 26 Missed 14 | . 9 5 Hits 42 | . 21 21 Melee 5 | . . 5 Projectile 37 | . 21 16 Critical Strikes 1 | . 1 . Damage Taken 594 | . 163 431 Core 277 | . 52 225 Absorbed by Shields . | . . . Core Remaining (%) 100 | 100 . . Volleys Fired 16 | 4 6 6 Largest 2 | 2 1 2 Hottest 100 | 100 50 50 Shots Fired 22 | 8 6 8 Gun 18 | 8 6 4 Cannon . | . . . Launcher 4 | . . 4 Special . | . . . Kinetic 4 | . . 4 Thermal 14 | 8 6 . Explosive 4 | . . 4 Electromagnetic . | . . . Robot Hit Streak 9 | 3 9 2 Robot Miss Streak 2 | 2 . 2 Penetration Max . | . . . Secondary Targets . | . . . Shots Hit Robots 15 | 4 8 3 Core Hits 20 | 3 2 15 Critical Kills . | . . . Critical Parts Destroyed . | . . . Critical Strikes . | . . . Melee Attacks 6 | . 6 . Impact . | . . . Slashing . | . . . Piercing . | . . . Sneak Attacks 1 | . 1 . Combat Hostiles . | . . . Follow-up Attacks . | . . . Damage Inflicted 523 | 50 76 397 Guns 142 | 50 76 16 Cannons . | . . . Explosions 381 | . . 381 Melee . | . . . Ramming . | . . . Kinetic 16 | . . 16 Thermal 126 | 50 76 . Explosive 381 | . . 381 Electromagnetic . | . . . Impact . | . . . Slashing . | . . . Piercing . | . . . Highest Corruption 3 | . . 3 Average Corruption 1 | . . 1 Corruption Purged . | . . . Corruption Blocked . | . . . Overload Shots . | . . . Overflow Damage . | . . . Projectiles . | . . . Explosions . | . . . Melee . | . . . Knockbacks . | . . . Impact . | . . . Kinetic . | . . . Secondary . | . . . Self-Inflicted Damage 52 | . . 52 Shots 2 | . . 2 Rammed . | . . . Targets Rammed . | . . . Kicked . | . . . Crushed . | . . . Highest Temperature 117 | 117 25 20 Average Temperature 35 | 49 16 13 Received Heat Transfer 40 | . . 40 Siege Activations . | . . . Martial Activations . | . . . Shielding Activations . | . . . Robots Disrupted . | . . . Combat Hostiles . | . . . Robots Corrupted . | . . . Combat Hostiles . | . . . Parts Fried . | . . . Impact Corruptions . | . . . Robots Melted . | . . . Combat Hostiles . | . . . Parts Melted 1 | . 1 . Heat Transferred 370 | 148 222 . Parts Sabotaged . | . . . Parts Stolen . | . . . Parts Stripped . | . . . Power Chain Reactions . | . . . Alert | -11 -10 -10 ------- Run | Yrd Mat Min Maximum Alert Level . | . . . Low Security (%) 100 | 100 100 100 Level 1 . | . . . Level 2 . | . . . Level 3 . | . . . Level 4 . | . . . Level 5 . | . . . High Security . | . . . Max Security . | . . . Peak Influence 84 | 5 40 84 Initial . | . . . Average 9 | . 6 50 Influence Increases 168 | 10 58 100 Destroy 0b10 Robot/C 100 | . 40 60 Destroy 0b10 Robot/NC 10 | 10 . . Destroy Leader 20 | . 10 10 Successful Hack 8 | . 8 . Destroy Structure 30 | . . 30 Influence Decreases 148 | 10 58 80 Time Decay 78 | 10 48 20 Lost Part 70 | . 10 60 Squads Dispatched . | . . . Investigation . | . . . Extermination . | . . . Reinforcement . | . . . Assault . | . . . Garrison . | . . . Intercept . | . . . Searches Triggered . | . . . Construction Impeded . | . . . Haulers Reinforced . | . . . Active Scanning Responses . | . . . Cargo Convoy Interrupts . | . . . Stealth | -11 -10 -10 --------- Run | Yrd Mat Min Distress Signals 1 | . 1 . Communications Jammed . | . . . Distress Signals . | . . . Times Spotted 29 | . 6 23 Peak Tracking Total 17 | . 5 17 Tactical Retreats . | . . . Traps | -11 -10 -10 ------- Run | Yrd Mat Min Traps Triggered 1 | . 1 . Indirectly . | . . . Trap Hack Attempts . | . . . Triggered . | . . . Disarmed . | . . . Reprogrammed . | . . . Reused . | . . . Traps Extracted . | . . . Installed . | . . . Triggered . | . . . Machines | -11 -10 -10 ---------- Run | Yrd Mat Min Machines Disabled . | . . . Max in Single Turn . | . . . Machines Repaired . | . . . Machines Dismantled . | . . . Machines Sabotaged . | . . . Overloaded Fab Kills . | . . . Hacking | -11 -10 -10 --------- Run | Yrd Mat Min Machines Accessed 6 | . 6 . Terminals 4 | . 4 . Fabricators . | . . . Repair Stations . | . . . Recycling Units 2 | . 2 . Scanalyzers . | . . . Garrison Access . | . . . Total Hacks 14 | . 14 . Successful 5 | . 5 . Failed 9 | . 9 . Catastrophic 2 | . 2 . Database Lockouts . | . . . Manual 10 | . 10 . Terminals 10 | . 10 . Fabricators . | . . . Repair Stations . | . . . Recycling Units 4 | . 4 . Scanalyzers . | . . . Garrison Access . | . . . Terminal Hacks 2 | . 2 . Branch Access Points 1 | . 1 . Scanalyzer Index 1 | . 1 . Fabricator Hacks . | . . . Repair Station Hacks . | . . . Recycling Unit Hacks 3 | . 3 . Report Inventory 2 | . 2 . Retrieve Components 1 | . 1 . Scanalyzer . | . . . Garrison Access Hacks . | . . . Unauthorized Hacks . | . . . Terminals . | . . . Fabricators . | . . . Repair Stations . | . . . Recycling Units . | . . . Scanalyzers . | . . . Garrison Access . | . . . Data Cores Recovered . | . . . Used . | . . . Hacking Detections 5 | . 5 . Full Trace Events . | . . . Feedback Events . | . . . Feedback Blocked . | . . . Robot Schematics Acquired . | . . . Robots Built . | . . . Authchips . | . . . Time . | . . . Total Robot Build Rating . | . . . Part Schematics Acquired . | . . . Parts Built . | . . . Authchips . | . . . Time . | . . . Total Part Build Rating . | . . . Part Studies Acquired . | . . . Parts Repaired . | . . . Time . | . . . Parts Recycled . | . . . Recycled Matter . | . . . Retrieved Matter . | . . . Retrieved Components 3 | . 3 . Parts Scanalyzed . | . . . Part Schematics Acquired . | . . . Parts Damaged . | . . . Bothacking | -11 -10 -10 ------------ Run | Yrd Mat Min Used RIF Installer . | . . . Robots Hacked 1 | . 1 . Non-combat 1 | . 1 . Combat . | . . . Robot Hacks Applied 1 | . 1 . no_distress 1 | . 1 . Relay Couplers Released . | . . . Fabnet Peak Effective % . | . . . Robots Rewired . | . . . Allies Hacked . | . . . Hacks Repelled . | . . . Allies | -11 -10 -10 -------- Run | Yrd Mat Min Total Allies . | . . . Largest Group . | . . . Highest-Rated Group . | . . . Highest-Rated Ally . | . . . Total Orders . | . . . Ally Attacks . | . . . Total Damage . | . . . Kills . | . . . Allies Corrupted . | . . . Allies Melted . | . . . Intel | -11 -10 -10 ------- Run | Yrd Mat Min Active Infowar (turns) 200 | . 152 48 Sensors 132 | . 84 48 Seismic 68 | . 68 . Robot Analysis Total . | . . . Derelict Logs Recovered 1 | . . 1 Drone Launches . | . . . Drone Recoveries . | . . . Exploration | -11 -10 -10 ------------- Run | Yrd Mat Min Turns Passed 433 | 94 290 49 Spaces Moved 505 | 50 380 75 Core 91 | 10 81 . Treads 21 | 4 17 . Legs 54 | 36 18 . Wheels . | . . . Hover . | . . . Flight 339 | . 264 75 Fastest Speed 37 | 50 37 37 Average Speed 62 | 116 60 38 Slowest Speed 160 | 160 160 120 Overloaded Moves . | . . . Propulsion Burnouts . | . . . Robots Hopped . | . . . Potential Cave-ins . | . . . Cave-ins Triggered . | . . . Exploration Rate (%) 26 | 4 56 19 Regions Visited 2 Branch Regions 1 Pre-discovered Areas 1 | . . 1 Known Exits Taken 1 | . 1 . Unknown Exits Taken 1 | 1 . . Scrap Searched . | . . . Spaces Dug . | . . . Terrain Destroyed 36 | . . 36 Melee . | . . . Projectile . | . . . AOE 36 | . . 36 Terrain Rammed . | . . . Walls Destroyed . | . . . Machines Disabled . | . . . Actions | -11 -10 -10 --------- Run | Yrd Mat Min Total 602 | 79 435 88 Wait 7 | . 4 3 Move 503 | 49 379 75 Hop . | . . . Pick Up 23 | 13 9 1 Fast Attach 6 | 1 4 1 Attach 20 | 9 11 . Detach 7 | . 6 1 Swap 1 | . . 1 Drop 13 | 3 10 . Fire 16 | 4 6 6 Melee 6 | . 6 . Ram . | . . . Kick . | . . . Crush . | . . . Escape Stasis . | . . . Rewire . | . . . Trap . | . . . Miscellaneous . | . . . Route ------- -11/Scrapyard -10/Materials (discovered 2 exits: *Mat / *Min) -10/Mines (discovered 1 exit: *Mat) History --------- Turn | Location | Event 10 | -11/Scrapyard | Discovered new exit (range 16) 95 | -11/Scrapyard | Entered Materials 135 | -10/Materials | Identified exit to Mines 322 | -10/Materials | Build established: Mutant 350 | -10/Materials | Discovered new exit (range 11) 365 | -10/Materials | Identified exit to Materials 385 | -10/Materials | Entered Mines 387 | -10/Mines | Learned location of Storage (-9) 390 | -10/Mines | YI-UF0 nonchalantly dropped a Grenade Launcher on the ground 394 | -10/Mines | Discovered exit to Materials (range 10) 407 | -10/Mines | Assembled infested the area 412 | -10/Mines | Assisted by a Guerilla fighting off Assembled 431 | -10/Mines | Core integrity fell below 50% 434 | -10/Mines | Core integrity fell below 20% 434 | -10/Mines | Destroyed by as-33283 with Assembled Blade Last Messages --------------- ALERT: Infestation in the mines, dispatching Demolisher response squad. K-01 Serf collects debris. A derelict emerges from the shadows: "You need to get out of here! I've been tracking a group of Assembled to figure out where they're coming from, and they're closing on this area, come on!" Flight Unit destroyed. as-49364 destroyed. as-79122 destroyed. as-27027 destroyed. Flight Unit destroyed. System corrupted by crushing effect (+1). as-23702 destroyed. Lgt. Ion Engine destroyed. Lgt. Assault Rifle destroyed. Grenade Launcher destroyed. Sensor Array destroyed. System corrupted by crushing effect (+2). Map ----- +----------------------------------------------------+ | ??## % ##??????????????????????????? | | ???# ##?????????????????????????? | | ???# #?????????????????????????? | | ???# % #?????????????????????????? | | ???# ##?????????????????????????? | | ???# < #??????????????????????????? | | ???# ##?????????????????????????? | | ???## #?????????????????????????? | | ????#### ##?????????????????????????? | | ???????# #??????????????????????????? | | ???????# #??????????????????????????? | | ???????# #??????????????????????????? | | ???????# #??????????????????????????? | | ???????# #??????????????????????????? | | ???????# #??????????????????????????? | | ???????# #??????????????????????????? | | ?????### #####??????????#???????????? | | ????## ## #????????? ##??????????? | | ???## #??????? #??????????? | | ???# ##?????? ??????????? | | ???# ##??####% ?????????? | | ???## ##?## a ?????????? | | ????### ######a aa%%aa ????????? | | ??????# #???# a a ! #????????? | | ??????# ##??#aaaa aa #??????????????? | | ?????## ##?#@aa #??????????????? | | ????## ### ### ##### #??????????? | | ????# #??????????? | | ???# ######## #??????????? | | ??# ## ##????????????????????? | | ??# ########?????????????????????? | | ??# #????????????????????????????? | | ??# #????????????????????????????? | | ??# #????????????????????????????? | | ??# #?????????????????????????????? | | ??## ##??????????????????????????????? | | ???##????????????????????????????????? | | ?????????????????????????????????????? | | ?????????????????????????????????????? | | ?????????????????????????????????????? | | | | | | | | | | | | | | | | | | | | | +----------------------------------------------------+ Best States ------------- Heat Dissipation 25 Energy Generation 10 Energy Capacity 250 Matter Stores 300 Matter Capacity 300 Sight Range 16 Robot Scan Range 14 Terrain Scan Density 10 Evasion (%) 62 Recoil Reduction 2 Item Schematics ----------------- None Robot Schematics ------------------ None Fabricated ------------ Nothing Repaired ---------- Nothing Studied --------- None Alien Tech Used ----------------- None Achievements -------------- None Challenges ------------ None Game ------ Seed MyomerSwordInsulator Manual? 0 Play Time 00:16:13 Cumulative 5.3 hours Start 2026.01.19 @ 22:39:38 End 2026.01.19 @ 22:55:21 Sessions 1 Manual Loads 0 Difficulty Rogue Special Mode None Game No. 8 Rogue 8 Adventurer 0 Explorer 0 Win Type - Total 0 Types 0/0/0/0/0/0/0/0/0/0 Lore% 11 Gallery% 9 Achievement% 12 Wizard Run 0 Options --------- Layout 2 ASCII 0 Keyboard 0 Movement Mouse Keybinds 0 Fullscreen 1 Font 24/Smallcaps Map View 50x44 Zoom Use 0% Tactical HUD 0 Map Filters NONE Filters NONE Steam 1 RUN: 9225ede8-086e-437c-ab8e-294bd3aa5644